[Event "44th Chess Olympiad Open 2022"]
[Site "Chennai"]
[Date "2022.08.05"]
[Round "7.51"]
[White "Ilkhomi, Jaloliddin"]
[Black "Gabriel, Davidson"]
[Result "1-0"]
[ECO "D02"]
[WhiteElo "2076"]
[BlackElo "1915"]
[Annotator "TA"]
[PlyCount "119"]
[EventDate "2022.07.29"]
[EventType "team-tourn"]
[EventCountry "IND"]
[SourceTitle "playchess.com"]
[Source "ChessBase"]
[SourceQuality "1"]
[WhiteTeam "Tajikistan"]
[BlackTeam "Haiti"]
[WhiteTeamCountry "TJK"]
[BlackTeamCountry "HAI"]
[TimeControl "40/5400+30:1800+30"]

{[%evp 17,119,0,0,-20,-14,-27,-7,-6,9,0,23,22,106,46,65,60,56,59,42,46,62,0,2,-6,2,24,151,-16,70,-14,66,60,56,65,72,65,41,0,0,0,0,0,0,0,0,0,0,0,-38,-38,0,0,0,0,0,0,0,0,0,0,0,0,0,0,26,53,572,555,29977,29979,29975,676,1287,1278,1159,1156,1018,952,932,953,937,858,758,704,686,627,541,486,29957,29958,29979,29980,29970,6079,1406,236,175,0,5289,5289,2446,1510,887,881]} 1. d4 {[%emt 0:00:05]} Nf6 {[%emt 0:00:13]} 2. Bf4 {[%emt 0:00:53]} e6 {[%emt 0:01:35]} 3. e3 {[%emt 0:00:37]} d5 {[%emt 0:01:50]} 4. Nd2 {[%emt 0:00:14]} Bd6 {[%emt 0:00:40]} 5. Bg3 {[%emt 0:00:26]} O-O {[%emt 0:00:31]} 6. Ngf3 {[%emt 0:00:12]} c5 {[%emt 0:00:42]} 7. c3 {[%emt 0:00:09]} Nc6 {[%emt 0:01:58]} 8. Bd3 {[%emt 0:00:07]} b6 {[%emt 0:01:21]} 9. Ne5 {[%emt 0:01:55] 9.Qe2 gains popularity.} Bb7 {[%emt 0:00:24]} 10. f4 {[%emt 0:01:10] D02: 1 d4 d5 2 Nf3 sidelines, including 2...Nf6 3 g3 and 2...Nf6 3 Bf4.} Ne7 {[%emt 0:01:44]} 11. Qb1 {[%emt 0:00:42]} c4 {[%emt 0:19:59]} 12. Bc2 {[%emt 0:01:00] The position is equal.} b5 {[%emt 0:07:02]} 13. O-O {[%emt 0:14:10] [#]} Rb8 $146 {[%emt 0:10:38]} ({Predecessor:} 13... g6 14. Bf2 Ne8 15. b3 Rb8 16. Qb2 Qc8 17. a4 b4 18. bxc4 dxc4 19. Nexc4 bxc3 20. Qxc3 {0-1 (59) Gould,I (2009)-Cook,D (2295) ICCF email 2016}) 14. Bh4 {[%emt 0:00:48]} h6 {[%emt 0:16:09]} (14... Ng6 $11 15. Bxf6 gxf6 16. Nxg6 hxg6) 15. Rf3 {[%emt 0:04:00]} (15. Bxf6 $16 gxf6 16. Qe1) 15... Ne8 {[%emt 0:02:43]} 16. g4 {[%emt 0:21:10] 0x0.0019ee8387cbdp-1022s more active pieces. The black rooks are badly placed.} f6 {[%emt 0:09:05]} 17. Ng6 {[%emt 0:03:24]} Nxg6 {[%emt 0:00:15]} 18. Bxg6 {[%emt 0:00:02][%cal Og4g5]} Be7 {[%emt 0:03:39]} 19. Qc2 {[%emt 0:03:58]} (19. g5 $1 $14) 19... Nd6 $11 {[%emt 0:00:27]} 20. Kh1 {[%emt 0:02:07]} Bc6 {[%emt 0:02:55]} 21. Rg1 {[%emt 0:03:08][%cal Og4g5]} b4 {[%emt 0:02:16]} (21... Be8 $11 {remains equal.}) 22. Rh3 $2 {[%emt 0:04:10]} (22. g5 $1 $16 {[%cal Rg5h6] Threatens to win with gxh6.} hxg5 23. Bxg5 fxg5 24. Bh7+ Kh8 25. Rh3) 22... bxc3 {[%emt 0:06:23] [#]} ({Black should play} 22... Be8 $1 $11) 23. bxc3 {[%emt 0:01:16]} (23. g5 $1 $14 fxg5 (23... Rxb2 24. Qxc3) 24. Bxg5 cxd2 25. Bxh6) 23... f5 {[%emt 0:01:08]} (23... Be8 $1 $11) 24. Bxe7 {[%emt 0:02:05]} Qxe7 {[%emt 0:00:02]} 25. g5 {[%emt 0:00:01] Inhibits Rf6.} hxg5 {[%emt 0:01:02]} 26. Rxg5 {[%emt 0:02:21]} Be8 $1 {[%emt 0:00:27]} 27. Qd1 {[%emt 0:07:26][%cal Oh3h8] White threatens Rh8+! and mate.} Bxg6 {[%emt 0:00:33]} 28. Rxg6 {[%emt 0:00:01] Qh5 is the strong threat.} Rf6 $1 $36 {[%emt 0:01:19][%mdl 2048] Black is more active.} 29. Qh5 {[%emt 0:00:55]} Rxg6 {[%emt 0:02:21]} 30. Qh8+ {[%emt 0:00:01]} Kf7 {[%emt 0:00:33][%cal Od6e4] ( -> ...Ne4!)} 31. Qxb8 {[%emt 0:00:03]} Rh6 {[%emt 0:02:04]} 32. Kg2 {[%emt 0:05:48]} Rxh3 {[%emt 0:00:41]} 33. Kxh3 {[%emt 0:00:08][%mdl 4096] Endgame KQN-KQN} Ne4 {[%emt 0:01:06]} 34. Nf3 {[%emt 0:06:36]} g5 {[%emt 0:00:42]} (34... Nxc3 {gets mated.} 35. Ne5+ Kf6 36. Qh8 Ne4 37. Qh4+ g5 38. Qh6#) 35. fxg5 {[%emt 0:01:06]} Nxg5+ {[%emt 0:00:35]} 36. Kg2 {[%emt 0:01:36] And now Qh8 would win.} Nxf3 {[%emt 0:00:34]} 37. Kxf3 {[%emt 0:00:02][%cal Bg2f3,Bf3f4,Bf4e5][%mdl 32] KQ-KQ} a5 {[%emt 0:01:43]} 38. Qh8 {[%emt 0:01:18] Black must now prevent Qh7+.} Qg5 {[%emt 0:00:22]} 39. Qh3 {[%emt 0:00:22]} Qg1 {[%emt 0:00:24]} 40. Kf4 {[%emt 0:01:35] Hoping for Qh5+.} Ke7 {[%emt 0:01:16]} (40... Qf2+ $2 41. Ke5 Qc2 42. Qh7+ Ke8 43. Kf6 $18) 41. Qg3 {[%emt 0:30:25]} Qd1 {[%emt 0:31:08][%mdl 8192]} (41... Qb1 $14) 42. Ke5 $18 {[%emt 0:00:20] Intending Qg7+ and mate.} Qd2 {[%emt 0:00:00]} 43. Qg7+ {[%emt 0:00:00]} Kd8 {[%emt 0:00:00]} 44. Qf8+ {[%emt 0:00:00]} (44. Kd6 $142 Qxh2+ 45. Kxe6 Kc8 46. Qd7+ Kb8 47. Qd8+ Ka7 48. Qxa5+ Kb7 49. Qxd5+ Ka7 50. Qa5+ Kb7 51. Qd5+ Ka7 52. Qxf5) 44... Kd7 {[%emt 0:00:00]} 45. Qd6+ {[%emt 0:00:00]} Kc8 {[%emt 0:00:00]} 46. Qxe6+ {[%emt 0:00:00]} Kc7 {[%emt 0:00:00]} 47. Qd6+ {[%emt 0:00:00]} Kc8 {[%emt 0:00:00]} 48. Qc5+ {[%emt 0:00:00]} Kb8 {[%emt 0:00:00]} 49. Qf8+ {[%emt 0:00:00]} Kc7 {[%emt 0:00:00]} 50. Qe7+ {[%emt 0:00:00]} Kb6 {[%emt 0:00:00]} 51. Qd6+ {[%emt 0:00:00]} Ka7 {[%emt 0:00:00]} 52. Qc7+ {[%emt 0:00:00]} Ka6 {[%emt 0:00:00]} (52... Ka8 $18 53. Qxa5+ Kb8 54. Qd8+ Kb7 55. Qxd5+ Ka7 56. Qd7+ Kb6 57. Qd6+ Kb7 58. Qb4+ Ka7 59. Qe7+ Ka6 60. Qd6+ Kb7 61. Qd5+ Ka7 62. Qf7+ Kb8 63. Qg8+ Kb7 64. Qf7+ Kb8 65. Qf8+ Kc7 66. Qc5+ Kb8 67. Qb5+ Ka7 68. Qc5+ Kb8 69. Qf8+ Kc7 70. Qc5+ Kb8) 53. Kxd5 {[%emt 0:00:00]} Qxe3 {[%emt 0:00:00]} 54. Kc5 {[%emt 0:00:00][%csl Gc5][%cal Rc7b6]} Qe6 {[%emt 0:00:00]} 55. a4 {[%emt 0:00:00]} (55. Qd8 $142 Kb7 56. Qd5+ Qxd5+ 57. Kxd5 Kc7 58. Ke5 Kb6 59. h4 Kb5 60. h5) 55... f4 {[%emt 0:00:00]} 56. Qxf4 $2 {[%emt 0:00:00]} (56. Qd8 {[%cal Rd8a8]} Kb7 57. d5) 56... Qb6+ {[%emt 0:00:00] [#]} 57. Kxc4 $2 {[%emt 0:00:00]} (57. Kd5 $1 $18 {Threatening mate with Qd6.} Qb7+ 58. Ke6 (58. Kxc4 Qc7+ 59. Qxc7 $11) 58... Qc8+ 59. Ke5) 57... Qc6+ {[%emt 0:00:00][%mdl 8192]} (57... Qc7+ $11 58. Qxc7) 58. Kb3 {[%emt 0:00:00] White is clearly winning.} Qb7+ {[%emt 0:00:00]} 59. Kc2 {[%emt 0:00:00] Qd6+ would kill now.} Qg2+ {[%emt 0:00:00]} 60. Qd2 {[%emt 0:00:00] Weighted Error Value: White=0.45/Black=0.66} 1-0

[Event "44th Chess Olympiad Open 2022"]
[Site "Chennai"]
[Date "2022.08.05"]
[Round "7.51"]
[White "Jean Louis, Marckens"]
[Black "Khusenkhojaev, Muhammad"]
[Result "0-1"]
[ECO "C54"]
[WhiteElo "2050"]
[BlackElo "2397"]
[Annotator "TA"]
[PlyCount "94"]
[EventDate "2022.07.29"]
[EventType "team-tourn"]
[EventCountry "IND"]
[SourceTitle "playchess.com"]
[Source "ChessBase"]
[SourceQuality "1"]
[WhiteTeam "Haiti"]
[BlackTeam "Tajikistan"]
[WhiteTeamCountry "HAI"]
[BlackTeamCountry "TJK"]
[TimeControl "40/5400+30:1800+30"]

{[%evp 13,94,41,43,-12,0,-5,0,-10,-9,-4,-11,-39,-4,-24,-26,-59,-45,-53,-29,-88,-58,-92,-92,-88,-87,-90,-90,-83,-90,-88,-83,-90,-86,-110,-116,-111,-119,-114,-112,-99,-106,-120,-118,-116,-116,-137,-139,-141,-147,-179,-142,-413,-421,-394,-396,-408,-399,-560,-559,-519,-504,-515,-475,-479,-438,-898,-887,-1927,-1859,-1796,-1678,-1600,-1573,-29972,-29973,-29973,-29974,-29976,-29975,-29975,-29975,-29974,-29970]} 1. e4 {[%emt 0:00:06]} e5 {[%emt 0:00:57]} 2. Nf3 {[%emt 0:00:28]} Nc6 {[%emt 0:00:10]} 3. Bc4 {[%emt 0:00:37]} Bc5 {[%emt 0:00:15]} 4. d3 {[%emt 0:01:02]} Nf6 {[%emt 0:00:09]} 5. c3 {[%emt 0:00:48]} O-O {[%emt 0:00:10]} 6. O-O {[%emt 0:00:27]} d5 {[%emt 0:00:10]} 7. exd5 {[%emt 0:02:10]} Nxd5 {[%emt 0:00:07]} 8. Bg5 {[%emt 0:03:24] C54: Giuoco Piano: 4 c3 Nf6, main lines with 5 d4 and 5 d3.} ({White should play} 8. Re1 $14) 8... f6 $11 {[%emt 0:01:20]} 9. Be3 {[%emt 0:00:47]} Bxe3 {[%emt 0:00:46]} 10. fxe3 {[%emt 0:00:03] [#] Hoping for e4. The position is equal.} Na5 $146 {[%emt 0:00:30]} ({Predecessor:} 10... Kh8 11. Qe2 Bg4 12. h3 Bh5 13. g4 Bf7 14. Bb3 Qd7 15. Nh4 Nde7 16. Bc2 b5 {½-½ (61) Nordenbaek,J (2214)-Heimisson,H (2299) Svendborg 2019}) 11. Bxd5+ {[%emt 0:04:20]} Qxd5 {[%emt 0:00:07]} 12. c4 {[%emt 0:00:38]} (12. e4 $5 {[%cal Re4d5]} Qd6 13. Qa4 $11) 12... Qc5 {[%emt 0:01:18]} 13. Qe1 {[%emt 0:02:00]} Nc6 {[%emt 0:01:07] Prevents b4.} 14. Na3 {[%emt 0:03:48]} Bf5 {[%emt 0:01:11]} 15. Rd1 {[%emt 0:01:34]} Rad8 {[%emt 0:01:06] Against d4} 16. Qe2 {[%emt 0:01:47]} (16. d4 $1 $11 exd4 17. exd4) 16... e4 {[%emt 0:01:13] Black is more active.} 17. d4 {[%emt 0:01:47]} exf3 {[%emt 0:00:47]} 18. Qxf3 {[%emt 0:00:37] [#]} Qe7 {[%emt 0:01:30]} 19. Qxf5 {[%emt 0:02:10]} Qxe3+ {[%emt 0:00:12]} 20. Qf2 {[%emt 0:03:18]} Qxf2+ {[%emt 0:00:18]} 21. Rxf2 {[%emt 0:01:16]} Rxd4 {[%emt 0:00:44]} ({Don't play} 21... Nxd4 $6 22. Rfd2 Ne6 23. Rxd8 Rxd8 24. Rxd8+ Nxd8 25. Nb5 $15) 22. Rxd4 {[%emt 0:01:11]} Nxd4 $17 {[%emt 0:00:11][%mdl 4096] Endgame KRN-KRN} 23. Rd2 {[%emt 0:00:07]} Rd8 {[%emt 0:00:21][%cal Od4f3]} 24. Kf2 {[%emt 0:00:30] Inhibits Nf3.} a6 {[%emt 0:00:33] Inhibits Nb5.} 25. Nc2 {[%emt 0:07:04]} Nc6 {[%emt 0:00:24]} 26. Rxd8+ {[%emt 0:05:03]} Nxd8 {[%emt 0:00:08] KN-KN} 27. Nb4 {[%emt 0:00:25]} Kf7 {[%emt 0:00:37]} 28. Ke3 {[%emt 0:00:29]} f5 {[%emt 0:05:11]} 29. Nd3 {[%emt 0:10:40]} Ne6 {[%emt 0:00:56]} 30. b4 {[%emt 0:01:05]} g5 {[%emt 0:00:48]} 31. a4 {[%emt 0:00:57]} Kf6 {[%emt 0:00:16]} 32. b5 $2 {[%emt 0:03:31][%mdl 8192] White does not recover from this.} (32. g3 $17 {keeps fighting.}) 32... a5 $19 {[%emt 0:04:11]} 33. c5 {[%emt 0:02:01]} b6 {[%emt 0:00:07]} 34. cxb6 {[%emt 0:04:17]} cxb6 {[%emt 0:00:07]} 35. g3 {[%emt 0:08:36]} (35. h3 $142 Ke7 36. Ne5) 35... Ke7 {[%emt 0:00:38]} 36. Nb2 {[%emt 0:03:00]} Kd6 {[%emt 0:02:23]} 37. Nc4+ {[%emt 0:02:36]} Kc5 {[%emt 0:00:07]} 38. Kd3 {[%emt 0:00:11]} f4 {[%emt 0:00:30] Threatens to win with ...fxg3.} 39. Ne5 {[%emt 0:01:51]} (39. Kc3 $142 fxg3 40. hxg3) 39... Kd5 {[%emt 0:01:21]} 40. Nf7 {[%emt 0:01:33]} fxg3 {[%emt 0:01:34]} 41. hxg3 {[%emt 0:30:08]} h5 {[%emt 0:30:10]} 42. Ke3 {[%emt 0:03:28]} h4 {[%emt 0:00:30]} 43. Nxg5 {[%emt 0:02:10]} Nxg5 {[%emt 0:00:21] Black mates.} 44. gxh4 {[%emt 0:00:03]} Ne6 {[%emt 0:00:09]} 45. h5 {[%emt 0:00:57]} Ke5 {[%emt 0:00:07]} 46. h6 {[%emt 0:00:25]} Kf6 {[%emt 0:00:06]} 47. Ke4 {[%emt 0:00:06]} Nc5+ {[%emt 0:00:10] Weighted Error Value: White=0.60/Black=0.05 (flawless)} 0-1

[Event "44th Chess Olympiad Open 2022"]
[Site "Chennai"]
[Date "2022.08.05"]
[Round "7.51"]
[White "Germinal, Kemly"]
[Black "Sharifov, Mekhriddin"]
[Result "0-1"]
[ECO "B50"]
[WhiteElo "1997"]
[BlackElo "2097"]
[Annotator "TA"]
[PlyCount "96"]
[EventDate "2022.07.29"]
[EventType "team-tourn"]
[EventCountry "IND"]
[SourceTitle "playchess.com"]
[Source "ChessBase"]
[SourceQuality "1"]
[WhiteTeam "Haiti"]
[BlackTeam "Tajikistan"]
[WhiteTeamCountry "HAI"]
[BlackTeamCountry "TJK"]
[TimeControl "40/5400+30:1800+30"]

{[%evp 9,96,12,7,4,0,0,5,-2,8,12,20,0,30,26,33,22,37,14,5,-3,0,-17,-6,-35,-21,-14,-19,-19,-19,-19,-29,-33,-14,-24,0,-62,-76,-75,0,-57,-32,-39,-8,-16,-24,-15,41,0,-23,-95,37,48,54,0,180,0,0,-268,-6,-671,-660,-627,-575,-881,-854,-951,-309,-285,-308,-260,-297,-665,-667,-650,-643,-601,-581,-558,-552,-12840,-12839,-12840,-12840,-12841,-12841,-12841,-12842,-12841,-12842]} 1. e4 {[%emt 0:00:06] Har Zvi,R} c5 {[%emt 0:00:07]} 2. Nc3 {[%emt 0:00:08]} a6 {[%emt 0:00:15]} 3. Nf3 {[%emt 0:01:54]} d6 {[%emt 0:01:22]} 4. d3 {[%emt 0:03:52]} Nc6 {[%emt 0:00:30]} 5. g3 {[%emt 0:02:44]} g6 {[%emt 0:01:18]} 6. Bg2 {[%emt 0:00:19] B50: Sicilian: 2...d6, Miscellaneous.} Bg7 {[%emt 0:00:06]} 7. O-O {[%emt 0:01:54]} e6 {[%emt 0:00:32]} 8. Bg5 {[%emt 0:04:11] [#] The position is equal.} Qb6 $146 {[%emt 0:02:25]} ({Predecessor:} 8... Nge7 9. Qd2 Nd4 10. Rab1 h6 11. Be3 d5 12. Ne1 b6 13. f4 Nxc2 14. Nxc2 d4 {0-1 (38) Milos,G (2605)-Ricardi,P (2575) Villa Martelli 1997 CBM 060 [Har Zvi,R]}) 9. Rb1 {[%emt 0:00:28]} Nf6 {[%emt 0:05:35]} 10. h3 {[%emt 0:05:53]} h6 {[%emt 0:04:18]} 11. Be3 {[%emt 0:00:20][%cal Ob2b4]} Qc7 {[%emt 0:05:29]} 12. Qd2 {[%emt 0:08:17]} e5 {[%emt 0:04:57] Against d4} 13. Kh2 {[%emt 0:08:06]} Be6 {[%emt 0:01:10]} 14. a3 {[%emt 0:03:08]} Rc8 {[%emt 0:03:36]} 15. a4 {[%emt 0:05:00]} Nd4 {[%emt 0:04:21]} 16. Ng1 {[%emt 0:01:28]} h5 {[%emt 0:03:50][%cal Of6g4]} 17. Nf3 {[%emt 0:22:37] [#]} Ng4+ $1 {[%emt 0:07:26]} 18. hxg4 {[%emt 0:06:39]} Nxf3+ {[%emt 0:00:15]} 19. Bxf3 {[%emt 0:00:07]} hxg4+ {[%emt 0:00:15][%mdl 64] Discovered Attack} 20. Kg2 {[%emt 0:00:05]} gxf3+ {[%emt 0:00:21]} 21. Kxf3 {[%emt 0:00:28]} Qd7 {[%emt 0:01:03] Strongly threatening ...Bg4+.} (21... f5 {seems wilder.} 22. Rh1 Kf7 23. Bh6 Qe7) 22. Ke2 {[%emt 0:06:19]} (22. Rh1 $1 $11) 22... Rh2 $15 {[%emt 0:00:53] Black is more active.} 23. Qe1 {[%emt 0:02:39]} Bg4+ {[%emt 0:02:07]} 24. Kd2 {[%emt 0:00:26]} Bf3 $1 {[%emt 0:00:10]} 25. b3 {[%emt 0:04:15]} b5 {[%emt 0:08:15]} 26. axb5 {[%emt 0:00:32]} axb5 {[%emt 0:00:05]} 27. Ra1 {[%emt 0:01:13]} Bf6 {[%emt 0:08:00]} (27... f5 $11) 28. Nd5 {[%emt 0:00:35]} (28. Ra6 $14) 28... Bd8 $36 {[%emt 0:00:13][%mdl 2048] Black has some pressure. A strong pair of Bishops.} 29. Ra6 {[%emt 0:02:15]} (29. g4 $1 $11 {keeps the balance.}) 29... c4 {[%emt 0:05:24]} (29... f5 $17 30. Kc1 fxe4 31. dxe4 Bxe4) 30. Qa1 $14 {[%emt 0:01:21]} Kf8 $1 {[%emt 0:09:54]} 31. Qa3 {[%emt 0:00:45]} (31. Ra8 $14) 31... Rc6 $2 {[%emt 0:00:45]} (31... cxd3 32. cxd3 Kg7 33. Qxd6 Qxd6 34. Rxd6 $16) (31... Kg7 $11 {and Black stays safe.}) 32. Ra7 $2 {[%emt 0:02:06]} (32. bxc4 $18 Rxa6 33. Qxa6 bxc4 34. Qxc4) 32... Qh3 $11 {[%emt 0:00:07][%csl LRf1,LRg3] Really sharp!} 33. Rg1 $2 {[%emt 0:04:36][%mdl 8192]} (33. Qa1 $1 $11) 33... Kg7 $2 {[%emt 0:06:48]} (33... c3+ $1 $19 34. Nxc3 Bb6 35. Bxb6 (35. Nxb5 $2 Rxf2+ 36. Kc1 Bxe3+ $19) 35... Qh6+ 36. Ke1 b4) 34. Ra8 $2 {[%emt 0:00:27][%mdl 8192] White does not recover from this.} (34. bxc4 $11 bxc4 35. Ra6 Rxa6 36. Qxa6) 34... c3+ $19 {[%emt 0:05:38]} 35. Nxc3 {[%emt 0:00:40]} Bb6 {[%emt 0:00:54]} 36. Bxb6 {[%emt 0:01:33] aiming for Be3.} b4 {[%emt 0:01:30]} 37. Qxb4 {[%emt 0:00:47] [#]} Qh6+ $2 {[%emt 0:00:05]} (37... Rxb6 $1 {[%mdl 512]} 38. Qa3 (38. Nb5 Rxf2+) 38... Rxf2+ 39. Kc1 Qh2) 38. Be3 {[%emt 0:00:43]} Rxf2+ $1 {[%emt 0:00:04]} 39. Kc1 {[%emt 0:00:18][%cal Ob4b8] Qb8! would kill now.} Qxe3+ {[%emt 0:00:06]} 40. Kb2 $2 {[%emt 0:00:14] [#]} (40. Kb1 Qd2 41. Rc1) 40... Rxc2+ $3 {[%emt 0:00:10][%mdl 576] Decoy, Clearance. Black is clearly winning.} 41. Kxc2 {[%emt 0:30:55][%cal Ob4b8] [#] Threatens to win with Qb8!} Qf2+ $1 {[%emt 0:32:28]} (41... Qxg1 42. Qb8 Qf2+ 43. Kb1 Qe1+ 44. Ka2 Qd2+ 45. Ka3 Qc1+ 46. Ka4 (46. Ka2 Qc2+ 47. Ka3 Qc1+ 48. Ka4 Qa1+ 49. Kb5 Qxa8 $14) 46... Qa1+ 47. Kb5 Qxa8 48. Qxa8 $14) 42. Kb1 {[%emt 0:00:00]} Qxg1+ {[%emt 0:00:00]} 43. Kb2 {[%emt 0:00:00] And now Qb8 would win.} Bg4 {[%emt 0:00:00] ...Qe1 is the strong threat.} (43... Qe3 44. Qb8 Qd2+ 45. Ka3 Qc1+ 46. Ka4 (46. Ka2 Qd2+ 47. Ka3 Qc1+ 48. Ka4 Qa1+ 49. Kb5 Qxa8 $14) 46... Qa1+ 47. Kb5 Qxa8 48. Qxa8 $16) 44. Rd8 {[%emt 0:00:00]} Qe3 {[%emt 0:00:00] ( -> ...Qd2+)} 45. Rxd6 {[%emt 0:00:00]} Qd2+ {[%emt 0:00:00]} 46. Ka3 {[%emt 0:00:00]} Qc1+ {[%emt 0:00:00]} 47. Ka4 {[%emt 0:00:00]} Qa1+ {[%emt 0:00:00]} 48. Qa3 {[%emt 0:00:00]} Qxc3 {[%emt 0:00:00] Weighted Error Value: White=0.81/Black=0.37} 0-1

[Event "44th Chess Olympiad Open 2022"]
[Site "Chennai"]
[Date "2022.08.05"]
[Round "7.52"]
[White "Kwon, Sehyun"]
[Black "Aziz, Husain"]
[Result "1-0"]
[ECO "C56"]
[WhiteElo "2225"]
[BlackElo "2380"]
[Annotator "TA"]
[PlyCount "85"]
[EventDate "2022.07.29"]
[EventType "team-tourn"]
[EventCountry "IND"]
[SourceTitle "playchess.com"]
[Source "ChessBase"]
[SourceQuality "1"]
[WhiteTeam "Korea"]
[BlackTeam "Qatar"]
[WhiteTeamCountry "KOR"]
[BlackTeamCountry "QAT"]
[TimeControl "40/5400+30:1800+30"]

{[%evp 28,85,12,27,27,6,83,86,67,72,66,88,154,116,145,121,166,89,93,55,56,45,51,53,53,48,58,51,56,42,42,84,81,61,123,59,128,133,265,281,253,222,308,305,618,560,542,635,635,635,616,0,635,635,587,593,2169,1510,706,669]} 1. e4 {[%emt 0:00:18]} e5 {[%emt 0:00:11]} 2. Nf3 {[%emt 0:00:33]} Nc6 {[%emt 0:00:08]} 3. Bc4 {[%emt 0:00:30]} Nf6 {[%emt 0:00:30]} 4. d4 {[%emt 0:00:30]} exd4 {[%emt 0:00:30]} 5. e5 {[%emt 0:00:38]} d5 {[%emt 0:00:09]} 6. Bb5 {[%emt 0:00:21]} Ne4 {[%emt 0:00:14]} 7. Nxd4 {[%emt 0:00:27]} Bd7 {[%emt 0:00:15]} 8. Bxc6 {[%emt 0:01:04]} bxc6 {[%emt 0:00:02]} 9. O-O {[%emt 0:00:31]} Bc5 {[%emt 0:00:32]} 10. f3 {[%emt 0:01:28]} Ng5 {[%emt 0:00:08]} 11. Be3 {[%emt 0:00:19]} Bb6 {[%emt 0:00:40]} 12. f4 {[%emt 0:01:35]} Ne4 {[%emt 0:00:33]} 13. Nd2 {[%emt 0:00:54]} Nxd2 {[%emt 0:00:42]} 14. Qxd2 {[%emt 0:00:03]} c5 {[%emt 0:00:15]} 15. Nf3 {[%emt 0:01:01]} d4 {[%emt 0:01:11] C56: Two Knights: 4 d4 exd4 5 0-0 Nxe4.} 16. Bf2 {[%emt 0:00:06]} Bb5 {[%emt 0:05:44]} (16... O-O $11) 17. Rfe1 $16 {[%emt 0:03:22]} Bc6 {[%emt 0:02:05] White is better.} 18. Bh4 {[%emt 0:13:20]} Qd5 {[%emt 0:05:21]} 19. f5 {[%emt 0:02:44] Qf4 is the strong threat. White is more active.} Kd7 {[%emt 0:07:53] [#]} (19... c4 $142) 20. c4 $146 {[%emt 0:22:20]} (20. Qg5 $6 Kc8 $14) ({Predecessor:} 20. e6+ Kc8 21. Ne5 fxe6 22. Nxc6 Qxc6 23. fxe6 Kb7 24. Qg5 h6 25. Qg6 Rhe8 26. Kh1 {0-1 (71) Wisniewski,M (1854)-Hetzer,V (2010) Wroclaw 2012}) 20... dxc3 {[%emt 0:03:28]} 21. Qxc3 {[%emt 0:02:18]} Kc8 {[%emt 0:01:39]} 22. Bf2 {[%emt 0:12:48]} (22. Kh1 $1 $18) 22... Kb7 {[%emt 0:00:08]} 23. b3 {[%emt 0:03:42] And now Rad1 would win.} (23. a4 {looks sharper.} c4 24. b3 Qd3 25. Qxc4 Rad8 26. Bxb6 axb6 27. a5) 23... Rad8 {[%emt 0:06:38]} 24. a4 {[%emt 0:13:45]} a5 {[%emt 0:02:11]} 25. Rac1 $1 {[%emt 0:00:40][%cal Rf2c5]} Rhe8 $1 {[%emt 0:12:23][%cal Of7f6]} 26. Bxc5 {[%emt 0:04:11]} Qxc5+ {[%emt 0:00:46]} 27. Qxc5 {[%emt 0:00:15]} Bxf3 {[%emt 0:00:23] [#]} 28. gxf3 {[%emt 0:00:43][%cal Og1g2]} Rd5 $1 {[%emt 0:24:01][%mdl 64] Pin} 29. Qxb6+ {[%emt 0:00:46]} Kxb6 $14 {[%emt 0:00:02][%mdl 4096] Endgame KRR-KRR} 30. f4 {[%emt 0:03:20]} Rd4 {[%emt 0:00:03]} ({Black should try} 30... f6 $14) 31. Rf1 {[%emt 0:00:53]} ({Better is} 31. Rc4 $1 $16 {[%cal Rc4d4]} Rxc4 32. bxc4) 31... Rd3 {[%emt 0:05:49]} (31... f6 $14) 32. Rfd1 {[%emt 0:00:21]} Red8 {[%emt 0:02:32]} (32... Rxd1+ $16 {is a better defense.} 33. Rxd1 Kc6) 33. Rxd3 $18 {[%emt 0:02:28]} Rxd3 {[%emt 0:00:02] KR-KR} 34. Kf2 {[%emt 0:02:35] Inhibits Rf3+.} ({Don't take} 34. e6 $6 Rd8 $16) 34... c6 {[%emt 0:03:22]} 35. Ke2 {[%emt 0:04:41]} Rxb3 {[%emt 0:05:07] [#]} (35... Rd4 36. Rc4 Rd5) 36. e6 $1 {[%emt 0:00:14]} Kc7 {[%emt 0:01:45]} 37. Rd1 {[%emt 0:00:50] aiming for Rd7+.} ({Less strong is} 37. exf7 Rb8 $18) 37... Rb2+ {[%emt 0:00:21]} 38. Ke3 {[%emt 0:00:56] Strongly threatening Rd7+.} Rb3+ {[%emt 0:00:23]} 39. Ke2 {[%emt 0:00:26]} Rb2+ {[%emt 0:00:06] [#]} 40. Kf3 $1 {[%emt 0:01:27] White is clearly winning.} Rb3+ {[%emt 0:00:17]} 41. Kg4 {[%emt 0:13:04] Black must now prevent Rd7+.} c5 {[%emt 0:00:38]} 42. exf7 {[%emt 0:05:57]} Rb8 {[%emt 0:00:08]} 43. f6 {[%emt 0:00:26] Weighted Error Value: White=0.24 (precise) /Black=0.35} 1-0